Cogmind - Beta 16 @@@ ROGUE MODE // 2025.11.04 @ 04:01:51 Player: Demo Result: Destroyed by as-63347 with Assembled Rifle Performance ------------- Evolutions (1) 500 Regions Visited (3) 600 Robots Destroyed (3) 15 Value Destroyed (30) 30 Prototype IDs (0) 0 Alien Tech Used (0) 0 Bonus (200) 200 TOTAL SCORE: 1345 Bonus ------- Pacifist 200 Cogmind --------- Core Integrity 0/400 Matter 273/300 Energy 100/100 System Corruption 0% Temperature Cool (0) Movement Core (50) Location -9/Mines Parts ------- > --- POWER (2) -------- (None) > --- PROPULSION (2) --- (None) > --- UTILITY (3) ------ Visual Processing Unit > --- WEAPON (2) ------- (None) > --- INVENTORY (5) ---- Armored Wheel Disposable Heat Sink Disposable Heat Sink Large Storage Unit Peak State ------------ > --- POWER ------------ (None) > --- PROPULSION ------- Flight Unit Flight Unit > --- UTILITY ---------- Small Battery Visual Processing Unit Weapon Shielding > --- WEAPON ----------- Grenade Launcher > --- INVENTORY -------- Armored Wheel Disposable Heat Sink Disposable Heat Sink Large Storage Unit Grenade Launcher [Rating: 7] Favorites ----------- Power None Propulsion Light Treads Treads Light Treads Flight Unit Flight Unit Utility Utility Shielding Storage Small Battery Processor Visual Processing Unit Protection Utility Shielding Weapon Grenade Launcher Launcher Grenade Launcher Build | -11 -10 -9 -9 ------- Run | Yrd Mat Mat Min Slots Evolved 2 | . . 2 . Power 1 | . . 1 . Propulsion . | . . . . Utility 1 | . . 1 . Weapon . | . . . . Parts Attached 11 | 2 1 1 7 Power . | . . . . Engine . | . . . . Core . | . . . . Reactor . | . . . . Propulsion 5 | 2 . 1 2 Treads 3 | 2 . 1 . Leg . | . . . . Wheel . | . . . . Hover . | . . . . Flight 2 | . . . 2 Utility 4 | . 1 . 3 Device . | . . . . Storage 1 | . . . 1 Processor 1 | . . . 1 Hackware . | . . . . Protection 2 | . 1 . 1 Artifact . | . . . . Weapon 2 | . . . 2 Energy Gun . | . . . . Energy Cannon . | . . . . Ballistic Gun . | . . . . Ballistic Cannon . | . . . . Launcher 2 | . . . 2 Special Weapon . | . . . . Impact Weapon . | . . . . Slashing Weapon . | . . . . Piercing Weapon . | . . . . Special Melee Weapon . | . . . . Unidentified Prototypes . | . . . . Parts Lost 7 | . . . 7 Power . | . . . . Propulsion 3 | . . . 3 Utility 2 | . . . 2 Weapon 2 | . . . 2 Highest Loss Streak 6 | . . . 6 To Critical Strikes . | . . . . Average Backups 3 | . 1 4 4 Power . | . . . . Propulsion . | . . 1 1 Utility 1 | . . 2 3 Weapon . | . . 1 . Tool/Special . | . . . . Unused Backups 4 | . . . 4 Power . | . . . . Propulsion 1 | . . . 1 Utility 3 | . . . 3 Weapon . | . . . . Tool/Special . | . . . . Average Slot Usage (%) 32 | . 28 33 35 Treads 19 | . 28 22 13 Flight 3 | . . . 6 Processor 1 | . . . 2 Protection 4 | . . 11 4 Launcher 4 | . . . 7 Peak Build Rating 7 | 2 3 3 7 Average Rating 2 | 1 2 3 3 On Entrance 2 | . 2 3 3 Avg Prop Armor Cover (%) 38 | 39 41 41 35 Naked Turns . | . . . . Heaviest Build 5 | . 1 1 5 Greatest Support 8 | 3 3 3 8 Greatest Overweight (x) 1 | . . . 1 Average Overweight (x) . | . . . . Largest Inventory Capacity 5 | 5 5 5 5 Average Capacity 5 | 5 5 5 5 Most Carried 5 | . 3 5 5 Average Carried 3 | . 1 4 4 Final Capacity 5 | 5 5 5 5 Final Carried 5 | . 3 5 4 Class Distribution -------------------- 100% | Mutant Dominant Class ---------------- Mutant | -10/Materials Mutant | -9/Materials Mutant | -9/Mines Resources | -11 -10 -9 -9 ----------- Run | Yrd Mat Mat Min Matter Collected 309 | 197 . . 112 Remotely . | . . . . Salvage Created 57 | . . . 57 Parts 4 | . . . 4 Haulers Intercepted . | . . . . Recyclers Shooed . | . . . . Parts Field Recycled . | . . . . Retrieved Matter . | . . . . Parts Self-Destructed . | . . . . Prevented . | . . . . Parts Restored . | . . . . Kills | -11 -10 -9 -9 ------- Run | Yrd Mat Mat Min Combat Hostiles Destroyed 14 | . . . 14 Melee 1 | . . . 1 AOE 13 | . . . 13 Classes Destroyed 2 | . . . 2 Swarmer 3 | . . . 3 Assembled 11 | . . . 11 Best Kill Streak 11 | . . . 11 Combat Bots Only 11 | . . . 11 Max Kills in Single Turn 6 | . . . 6 Gunslinging . | . . . . Exploded 6 | . . . 6 Melee 1 | . . . 1 Uniques/NPCs Destroyed . | . . . . Combat | -11 -10 -9 -9 -------- Run | Yrd Mat Mat Min Hostile Shots Fired 115 | . 58 . 57 Missed 43 | . 25 . 18 Hits 72 | . 33 . 39 Melee 4 | . . . 4 Projectile 68 | . 33 . 35 Critical Strikes 1 | . . . 1 Damage Taken 1023 | . 329 . 694 Core 509 | . 108 . 401 Absorbed by Shields . | . . . . Redirected to Shielding 30 | . . . 30 Core Remaining (%) 78 | 100 56 . . Volleys Fired 6 | . . . 6 Largest 2 | . . . 2 Hottest 60 | . . . 60 Shots Fired 7 | . . . 7 Gun . | . . . . Cannon . | . . . . Launcher 7 | . . . 7 Special . | . . . . Kinetic . | . . . . Thermal . | . . . . Explosive 7 | . . . 7 Electromagnetic . | . . . . Robot Hit Streak 3 | . . . 3 Robot Miss Streak 1 | . . . 1 Penetration Max . | . . . . Secondary Targets . | . . . . Shots Hit Robots 4 | . . . 4 Core Hits 35 | . . . 35 Critical Kills . | . . . . Critical Parts Destroyed . | . . . . Critical Strikes . | . . . . Melee Attacks . | . . . . Impact . | . . . . Slashing . | . . . . Piercing . | . . . . Sneak Attacks . | . . . . Combat Hostiles . | . . . . Follow-up Attacks . | . . . . Damage Inflicted 1009 | . 9 . 1000 Guns . | . . . . Cannons . | . . . . Explosions 990 | . . . 990 Melee . | . . . . Ramming 19 | . 9 . 10 Kinetic . | . . . . Thermal . | . . . . Explosive 990 | . . . 990 Electromagnetic . | . . . . Impact . | . . . . Slashing . | . . . . Piercing . | . . . . Highest Corruption . | . . . . Average Corruption . | . . . . Corruption Purged . | . . . . Corruption Blocked . | . . . . Overload Shots . | . . . . Overflow Damage 92 | . . . 92 Projectiles . | . . . . Explosions 92 | . . . 92 Melee . | . . . . Knockbacks . | . . . . Impact . | . . . . Kinetic . | . . . . Secondary . | . . . . Self-Inflicted Damage 133 | . 4 . 129 Shots 3 | . . . 3 Rammed 3 | . 2 . 1 Targets Rammed 3 | . 2 . 1 Kicked . | . . . . Crushed . | . . . . Highest Temperature 16 | . . . 16 Average Temperature 7 | . . . 7 Received Heat Transfer 157 | . 93 . 64 Siege Activations . | . . . . Martial Activations . | . . . . Shielding Activations . | . . . . Robots Disrupted . | . . . . Combat Hostiles . | . . . . Robots Corrupted . | . . . . Combat Hostiles . | . . . . Parts Fried . | . . . . Impact Corruptions . | . . . . Robots Melted . | . . . . Combat Hostiles . | . . . . Parts Melted . | . . . . Heat Transferred . | . . . . Parts Sabotaged . | . . . . Parts Stolen . | . . . . Parts Stripped . | . . . . Power Chain Reactions . | . . . . Alert | -11 -10 -9 -9 ------- Run | Yrd Mat Mat Min Maximum Alert Level . | . . . . Low Security (%) 100 | 100 100 100 100 Level 1 . | . . . . Level 2 . | . . . . Level 3 . | . . . . Level 4 . | . . . . Level 5 . | . . . . High Security . | . . . . Max Security . | . . . . Peak Influence 82 | . 15 5 82 Initial 5 | . . 5 . Average 16 | . . 3 30 Influence Increases 150 | . 15 . 135 Destroy 0b10 Robot/C 60 | . . . 60 Destroy Leader 10 | . . . 10 Destroy Structure 35 | . . . 35 Lose Combat Pursuer 45 | . 15 . 30 Influence Decreases 145 | . . 15 130 Entered New Map 10 | . . 10 . Time Decay 65 | . . 5 60 Lost Part 70 | . . . 70 Squads Dispatched 4 | . 3 1 . Investigation 1 | . 1 . . Extermination . | . . . . Reinforcement 3 | . 2 1 . Assault . | . . . . Garrison . | . . . . Intercept . | . . . . Searches Triggered . | . . . . Construction Impeded . | . . . . Haulers Reinforced . | . . . . Active Scanning Responses . | . . . . Cargo Convoy Interrupts . | . . . . Stealth | -11 -10 -9 -9 --------- Run | Yrd Mat Mat Min Distress Signals . | . . . . Communications Jammed . | . . . . Distress Signals . | . . . . Times Spotted 36 | . 8 2 26 Peak Tracking Total 20 | . 7 1 20 Tactical Retreats 2 | . 1 . 1 Traps | -11 -10 -9 -9 ------- Run | Yrd Mat Mat Min Traps Triggered 1 | . 1 . . Indirectly . | . . . . Trap Hack Attempts . | . . . . Triggered . | . . . . Disarmed . | . . . . Reprogrammed . | . . . . Reused . | . . . . Traps Extracted . | . . . . Installed . | . . . . Triggered . | . . . . Machines | -11 -10 -9 -9 ---------- Run | Yrd Mat Mat Min Machines Disabled . | . . . . Max in Single Turn . | . . . . Machines Repaired . | . . . . Machines Dismantled . | . . . . Machines Sabotaged . | . . . . Overloaded Fab Kills . | . . . . Hacking | -11 -10 -9 -9 --------- Run | Yrd Mat Mat Min Machines Accessed . | . . . . Terminals . | . . . . Fabricators . | . . . . Repair Stations . | . . . . Recycling Units . | . . . . Scanalyzers . | . . . . Garrison Access . | . . . . Total Hacks . | . . . . Successful . | . . . . Failed . | . . . . Catastrophic . | . . . . Database Lockouts . | . . . . Manual . | . . . . Terminals . | . . . . Fabricators . | . . . . Repair Stations . | . . . . Recycling Units . | . . . . Scanalyzers . | . . . . Garrison Access . | . . . . Terminal Hacks . | . . . . Fabricator Hacks . | . . . . Repair Station Hacks . | . . . . Recycling Unit Hacks . | . . . . Scanalyzer . | . . . . Garrison Access Hacks . | . . . . Unauthorized Hacks . | . . . . Terminals . | . . . . Fabricators . | . . . . Repair Stations . | . . . . Recycling Units . | . . . . Scanalyzers . | . . . . Garrison Access . | . . . . Data Cores Recovered . | . . . . Used . | . . . . Hacking Detections . | . . . . Full Trace Events . | . . . . Feedback Events . | . . . . Feedback Blocked . | . . . . Robot Schematics Acquired . | . . . . Robots Built . | . . . . Authchips . | . . . . Time . | . . . . Total Robot Build Rating . | . . . . Part Schematics Acquired . | . . . . Parts Built . | . . . . Authchips . | . . . . Time . | . . . . Total Part Build Rating . | . . . . Part Studies Acquired . | . . . . Parts Repaired . | . . . . Time . | . . . . Parts Recycled . | . . . . Recycled Matter . | . . . . Retrieved Matter . | . . . . Retrieved Components . | . . . . Parts Scanalyzed . | . . . . Part Schematics Acquired . | . . . . Parts Damaged . | . . . . Bothacking | -11 -10 -9 -9 ------------ Run | Yrd Mat Mat Min Used RIF Installer . | . . . . Robots Hacked . | . . . . Non-combat . | . . . . Combat . | . . . . Robot Hacks Applied . | . . . . Relay Couplers Released . | . . . . Fabnet Peak Effective % . | . . . . Robots Rewired . | . . . . Allies Hacked . | . . . . Hacks Repelled . | . . . . Allies | -11 -10 -9 -9 -------- Run | Yrd Mat Mat Min Total Allies . | . . . . Largest Group . | . . . . Highest-Rated Group . | . . . . Highest-Rated Ally . | . . . . Total Orders . | . . . . Ally Attacks . | . . . . Total Damage . | . . . . Kills . | . . . . Allies Corrupted . | . . . . Allies Melted . | . . . . Intel | -11 -10 -9 -9 ------- Run | Yrd Mat Mat Min Active Infowar (turns) 26 | . . . 26 Optics 26 | . . . 26 Robot Analysis Total . | . . . . Derelict Logs Recovered 1 | . . . 1 Drone Launches . | . . . . Drone Recoveries . | . . . . Exploration | -11 -10 -9 -9 ------------- Run | Yrd Mat Mat Min Turns Passed 281 | 16 91 29 145 Spaces Moved 492 | 27 168 47 250 Core 388 | 27 168 47 146 Treads . | . . . . Legs . | . . . . Wheels . | . . . . Hover . | . . . . Flight 104 | . . . 104 Fastest Speed 37 | 50 50 50 37 Average Speed 47 | 50 50 50 44 Slowest Speed 100 | 50 50 50 100 Overloaded Moves . | . . . . Propulsion Burnouts . | . . . . Robots Hopped . | . . . . Potential Cave-ins . | . . . . Cave-ins Triggered . | . . . . Exploration Rate (%) 29 | 3 38 10 65 Regions Visited 3 Branch Regions 1 Pre-discovered Areas . | . . . . Known Exits Taken . | . . . . Unknown Exits Taken 3 | 1 1 1 . Scrap Searched 2 | . . . 2 Spaces Dug . | . . . . Terrain Destroyed 46 | . . . 46 Melee . | . . . . Projectile . | . . . . AOE 46 | . . . 46 Terrain Rammed . | . . . . Walls Destroyed . | . . . . Machines Disabled . | . . . . Actions | -11 -10 -9 -9 --------- Run | Yrd Mat Mat Min Total 525 | 28 173 51 273 Wait 7 | . . . 7 Move 489 | 26 167 46 250 Hop . | . . . . Pick Up 6 | . 3 3 . Fast Attach 9 | 2 1 . 6 Attach 1 | . . . 1 Detach . | . . . . Swap 1 | . . 1 . Drop 3 | . . 1 2 Fire 6 | . . . 6 Melee . | . . . . Ram 3 | . 2 . 1 Kick . | . . . . Crush . | . . . . Escape Stasis . | . . . . Rewire . | . . . . Trap . | . . . . Miscellaneous . | . . . . Route ------- -11/Scrapyard -10/Materials -9/Materials -9/Mines History --------- Turn | Location | Event 6 | -11/Scrapyard | Discovered new exit (range 15) 17 | -11/Scrapyard | Entered Materials 102 | -10/Materials | Discovered new exit (range 9) 108 | -10/Materials | Entered another Materials area 108 | -9/Materials | Evolved 2 slots: Power x1, Utility x1 131 | -9/Materials | Discovered new exit (range 12) 137 | -9/Materials | Entered Mines 178 | -9/Mines | YI-UF0 nonchalantly dropped a Grenade Launcher on the ground 233 | -9/Mines | Learned Materials stockpile data 266 | -9/Mines | Assembled infested the area 275 | -9/Mines | Core integrity fell below 50% 277 | -9/Mines | Core integrity fell below 20% 282 | -9/Mines | Destroyed by as-63347 with Assembled Rifle Last Messages --------------- 00269_ as-02852 destroyed. 00269_ as-08581 destroyed. 00269_ Sml. Battery destroyed. 00270_ Grenade Launcher destroyed. 00274_ The unstable cave ceiling collapses. 00274_ Weapon Shielding destroyed. 00274_ as-59723 destroyed. 00274_ Destroyed Asb. F-torch. 00274_ as-04088 destroyed. 00274_ Destroyed Asb. F-torch. 00274_ as-62024 destroyed. 00274_ Destroyed Asb. F-torch. 00274_ as-09089 destroyed. 00274_ as-74670 destroyed. 00274_ Grenade Launcher destroyed. 00280_ as-33090 destroyed. 00280_ as-90606 destroyed. 00280_ Acquired 3 matter. 00281_ The unstable cave ceiling collapses. 00281_ Flight Unit destroyed. Map ----- +----------------------------------------------------+ | ???????# #?????????????#?????# #?????# #?# | | ???##### #???????????????????# ####### #?## | | ???# #???????????????????# #### | | ???# #???????????????????######### # | | ???# #####???????????????????????????#### # | | ???# #??????????????????????????????????# # | | ???# #??????????????????????????????????# | | ???# #??????????????????????????????????### | | ???#/%#?????????????????????????????????#### | | ???# #?????????????????????????????????# | | ???# #???????????##????????????????????# | | ???# ##?????????# ##???????????????????# | | ???# ##???????? ###?????????????????# " | | ???# ##??????? ##????????????????# " | | ??## ##??????# #????????????????# " | | # # #??##### #????????????????# | | # #?## #?????????????????## # | | # ### #??????????????????? ? | | ?# #????????????????????#?? | | ?# #??????????????????????? | | ??## a ##??????????????????????? | | ???# #???????????????????????? | | ???# a ##??????????????????????? | | ???# %%a a ##?????????????????????? | | ???# #?????????????????????? | | ???# @ #?????????????????????? | | ???## # a ##????????????????????? | | ????##### ## a #????????????????????? | | ????????## ### # a%% #????????????????????? | | ?????????###?## < #???????????????????? | | ??????????????# #??????????????????? | | ??????????????## #??????????????????? | | ???????????????##### ##??????????????????? | | ???????????????????#####???????????????????? | | ???????????????????????????????????????????? | | ???????????????????????????????????????????? | | ???????????????????????????????????????????? | | ???????????????????????????????????????????? | | ???????????????????????????????????????????? | | ???????????????????????????????????????????? | | ???????????????????????????????????????????? | | ???????????????????????????????????????????? | | ???????????????????????????????????????????? | | | | | | | | | | | | | | | +----------------------------------------------------+ Best States ------------- Heat Dissipation 28 Energy Generation 5 Energy Capacity 200 Matter Stores 300 Matter Capacity 300 Sight Range 18 Terrain Scan Density 10 Utility Shielding 33 Weapon Shielding 33 Evasion (%) 62 Item Schematics ----------------- None Robot Schematics ------------------ None Fabricated ------------ Nothing Repaired ---------- Nothing Studied --------- None Alien Tech Used ----------------- None Achievements -------------- None Challenges ------------ None Game ------ Seed SubatomicCryofiberMatrix Manual? 0 Play Time 00:04:27 Cumulative 363.1 hours Start 2025.11.04 @ 03:59:02 End 2025.11.04 @ 04:01:51 Sessions 1 Manual Loads 0 Difficulty Rogue Special Mode None Game No. 321 Rogue 321 Adventurer 0 Explorer 0 Win Type - Total 2 Types 1/1/0/0/0/0/0/0/0/0 Lore% 83 Gallery% 82 Achievement% 59 Wizard Run 0 Options --------- Layout 1 ASCII 0 Keyboard 0 Movement Numpad Keybinds 0 Fullscreen 1 Font 24/Smallcaps Map View 50x35 Zoom Use 0% Tactical HUD 1 Map Filters NONE Filters NONE Steam 1 RUN: 3dbe5ab8-733d-417d-911c-8ad5b69a51b5